fUSD/lending_fUSD_20240718
["ID","MTS","AMOUNT","RATE_DAILY","PERIOD"]
[332506440,1721278302982,-500.0,0.00023287,2]
[332506441,1721278302991,-500.0,0.00023287,2]
[332506442,1721278303000,-808.44,0.00023287,2]
[332506443,1721278303011,-151.0,0.00023287,7]
[332506444,1721278303021,-469.99801759,0.00023287,2]
[332506445,1721278303030,-500.0,0.00023287,2]
[332506446,1721278303039,-1485.25,0.00023287,2]
[332506447,1721278303048,-500.0,0.00023287,2]
[332506448,1721278303060,-500.0,0.00023287,2]
[332506449,1721278303070,-851.31,0.00023287,2]
[332506450,1721278303079,-500.0,0.00023287,2]
[332506451,1721278303088,-737.53,0.00023287,2]
[332506452,1721278303098,-731.61,0.00023287,2]
[332506453,1721278303108,-500.0,0.00023287,2]
[332506454,1721278303121,-500.0,0.00023287,2]
[332506455,1721278303131,-847.98,0.00023287,2]
[332506456,1721278303143,-1118.26,0.00023287,2]
[332506457,1721278303152,-1876.76,0.00023287,2]
[332506458,1721278303161,-500.0,0.00023287,2]
[332506459,1721278303170,-500.0,0.00023287,2]
[332506460,1721278303179,-500.0,0.00023287,2]
[332506461,1721278303188,-578.05,0.00023287,2]
[332506462,1721278303197,-873.21,0.00023287,2]
[332506463,1721278303207,-513.88,0.00023287,2]
[332506464,1721278303217,-500.0,0.00023287,2]
[332506465,1721278303228,-714.22,0.00023287,2]
[332506466,1721278303238,-1825.95,0.00023287,2]
[332506467,1721278303247,-151.0,0.00023287,7]
[332506468,1721278303258,-734.44,0.00023287,2]
[332506469,1721278303269,-500.0,0.00023287,2]
[332506470,1721278303278,-500.0,0.00023287,2]
[332506471,1721278303289,-701.01,0.00023287,2]
[332506472,1721278303299,-500.0,0.00023287,2]
[332506473,1721278303311,-869.23,0.00023287,2]
[332506474,1721278303320,-500.0,0.00023287,2]
[332506475,1721278303331,-909.34,0.00023287,2]
[332506476,1721278303342,-500.0,0.00023287,2]
[332506477,1721278303351,-500.0,0.00023287,2]
[332506478,1721278303360,-1334.21,0.00023287,2]
[332506479,1721278303372,-1076.03,0.00023287,2]
[332506480,1721278303381,-500.0,0.00023287,2]
[332506481,1721278303390,-621.2,0.00023287,2]
[332506482,1721278303400,-500.0,0.00023287,2]
[332506483,1721278303409,-500.0,0.00023287,2]
[332506484,1721278303418,-151.0,0.00023287,7]
[332506485,1721278303428,-500.0,0.00023287,2]
[332506486,1721278303438,-500.0,0.00023287,2]
[332506487,1721278303448,-500.0,0.00023287,2]
[332506488,1721278303457,-977.9,0.00023287,2]
[332506489,1721278303466,-500.0,0.00023287,2]
[332506490,1721278303475,-500.0,0.00023287,2]
[332506491,1721278303485,-500.0,0.00023287,2]
[332506492,1721278303495,-500.0,0.00023287,2]
[332506493,1721278303504,-707.1,0.00023287,2]
[332506494,1721278303513,-500.0,0.00023287,2]
[332506495,1721278303522,-796.34,0.00023287,2]
[332506496,1721278303532,-238.63046378,0.00023287,2]
[332506497,1721278303541,-773.11,0.00023287,2]
[332506498,1721278303550,-1277.33,0.00023287,2]
[332506499,1721278303559,-976.14,0.00023287,2]
[332506500,1721278303569,-990.23,0.00023287,2]
[332506501,1721278303578,-943.13,0.00023287,2]
[332506502,1721278303588,-1332.14,0.00023287,2]
[332506503,1721278303598,-694.43,0.00023287,2]
[332506504,1721278303607,-1424.65,0.00023287,2]
[332506505,1721278303618,-275.3722,0.00023287,7]
[332506506,1721278303628,-814.14,0.00023287,2]
[332506507,1721278303637,-500.0,0.00023287,2]
[332506508,1721278303647,-275.3722,0.00023287,7]
[332506509,1721278303657,-500.0,0.00023287,2]
[332506510,1721278303666,-686.13,0.00023287,2]
[332506511,1721278303675,-1725.67,0.00023287,2]
[332506512,1721278303684,-665.3,0.00023287,2]
[332506513,1721278303693,-500.0,0.00023287,2]
[332506514,1721278303703,-907.71,0.00023287,2]
[332506515,1721278303713,-500.0,0.00023287,2]
[332506516,1721278303723,-500.0,0.00023287,2]
[332506517,1721278303733,-125.74785574,0.00023287,2]
[332506518,1721278303751,-374.25214426,0.00023287,2]
[332506519,1721278303760,-151.0,0.00023287,7]
[332506520,1721278303771,-682.42,0.00023287,2]
[332506521,1721278303782,-539.26,0.00023287,2]
[332506522,1721278303793,-500.0,0.00023287,2]
[332506523,1721278303804,-266.50808474,0.00023287,2]
[332506524,1721278303820,-476.37191526,0.00023287,2]
[332506525,1721278303830,-337.41607801,0.00023287,2]
[332506526,1721278303925,-657.00392199,0.00023287,2]
[332506527,1721278303935,-151.0,0.00023287,7]
[332506528,1721278303946,-588.79,0.00023287,2]
[332506529,1721278303958,-500.0,0.00023287,2]
[332506530,1721278303967,-500.0,0.00023287,2]
[332506531,1721278303978,-500.0,0.00023287,2]
[332506532,1721278303989,-516.2,0.00023287,2]
[332506533,1721278303999,-590.38,0.00023287,2]
[332506534,1721278304009,-922.02058297,0.00023287,2]
[332506535,1721278304022,-548.59941703,0.00023287,2]
[332506536,1721278304034,-500.0,0.00023287,2]
[332506537,1721278304047,-1484.14,0.00023287,2]
[332506538,1721278304060,-647.32,0.00023287,2]
[332506539,1721278304071,-125.14096823,0.00023287,2]
[332506540,1721278304084,-374.85903177,0.00023287,2]
[332506541,1721278304094,-532.7975446,0.00023287,2]
[332506542,1721278304106,-188.8724554,0.00023287,2]
[332506543,1721278304116,-500.0,0.00023287,2]
[332506544,1721278304126,-500.0,0.00023287,2]
[332506545,1721278304139,-271.45394436,0.00023287,2]
[332506546,1721278304161,-500.0,0.00021917,2]
[332506547,1721278304170,-927.57605564,0.00023287,2]
[332506548,1721278304180,-516.15647225,0.00023287,2]
[332506549,1721278304191,-1064.51,0.00023287,2]
[332506550,1721278304200,-673.34,0.00023287,2]
[332506551,1721278304210,-616.153764,0.00023287,7]
[332506552,1721278304219,-500.0,0.00023287,2]
[332506553,1721278304228,-787.22,0.00023287,2]
[332506554,1721278304237,-500.0,0.00023287,2]
[332506555,1721278304246,-1277.65,0.00023287,2]
[332506556,1721278304256,-616.153764,0.00023287,7]
[332506557,1721278304265,-680.26,0.00023287,2]
[332506558,1721278304274,-500.0,0.00023287,2]
[332506559,1721278304283,-500.0,0.00023287,2]
[332506560,1721278304293,-500.0,0.00023287,2]
[332506561,1721278304302,-1034.23,0.00023287,2]
[332506562,1721278304310,-1588.53,0.00023287,2]
[332506563,1721278304319,-1105.89,0.00023287,2]
[332506564,1721278304328,-1040.13,0.00023287,2]
[332506565,1721278304337,-500.0,0.00023287,2]
[332506566,1721278304347,-500.0,0.00023287,2]
[332506567,1721278304357,-500.0,0.00023287,2]
[332506568,1721278304368,-500.0,0.00023287,2]
[332506569,1721278304377,-807.25,0.00023287,2]
[332506570,1721278304387,-522.15753535,0.00023287,2]
[332506571,1721278304396,-500.0,0.00023287,2]
[332506572,1721278304405,-695.08,0.00023287,2]
[332506573,1721278304414,-1723.84,0.00023287,2]
[332506574,1721278304423,-795.46,0.00023287,2]
[332506575,1721278304432,-500.0,0.00023287,2]
[332506576,1721278304442,-505.34,0.00023287,2]
[332506577,1721278304451,-1595.33,0.00023287,2]
[332506578,1721278304460,-794.76,0.00023287,2]
[332506579,1721278304470,-831.59,0.00023287,2]
[332506580,1721278304480,-758.81,0.00023287,2]
[332506581,1721278304490,-1725.93,0.00023287,2]
[332506582,1721278304500,-631.15,0.00023287,2]
[332506583,1721278304509,-1297.16,0.00023287,2]
[332506584,1721278304518,-872.0,0.00023287,2]
[332506585,1721278304527,-500.0,0.00023287,2]
[332506586,1721278304536,-1353.19,0.00023287,2]
[332506587,1721278304546,-612.23,0.00023287,2]
[332506588,1721278304555,-500.0,0.00023287,2]
[332506589,1721278304565,-500.0,0.00023287,2]
[332506590,1721278304574,-500.0,0.00023287,2]
[332506591,1721278304583,-927.57,0.00023287,2]
[332506592,1721278304593,-171.338137,0.00023287,7]
[332506593,1721278304603,-500.0,0.00023287,2]
[332506594,1721278304612,-500.0,0.00023287,2]
[332506595,1721278304622,-500.0,0.00023287,2]
[332506596,1721278304631,-171.338137,0.00023287,7]
[332506597,1721278304640,-841.69,0.00023287,2]
[332506598,1721278304650,-3170.55,0.00023287,2]
[332506599,1721278304659,-500.0,0.00023287,2]
[332506600,1721278304669,-500.0,0.00023287,2]
[332506601,1721278304677,-191.65459619,0.00023287,2]
[332506602,1721278304687,-1011.29,0.00023287,2]
[332506603,1721278304696,-447.40042675,0.00023287,2]
[332506604,1721278304710,-52.59957325,0.00023287,2]
[332506605,1721278304719,-500.0,0.00023287,2]
[332506606,1721278304729,-500.0,0.00023287,2]
[332506607,1721278304738,-500.0,0.00023287,2]
[332506608,1721278304747,-563.9,0.00023287,2]
[332506609,1721278304756,-564.03,0.00023287,2]
[332506610,1721278304765,-826.8,0.00023287,2]
[332506611,1721278304773,-1015.25,0.00023287,2]
[332506612,1721278304784,-557.71,0.00023287,2]
[332506613,1721278304795,-500.0,0.00023287,2]
[332506614,1721278304805,-491.32,0.00023287,2]
[332506615,1721278304815,-956.06,0.00023287,2]
[332506616,1721278304826,-500.0,0.00023287,2]
[332506617,1721278304835,-500.0,0.00023287,2]
[332506618,1721278304844,-500.0,0.00023287,2]
[332506619,1721278304853,-1870.76,0.00023287,2]
[332506620,1721278304864,-672.48,0.00023287,2]
[332506621,1721278304874,-754.80375743,0.00023287,2]
[332506622,1721278304886,-380.34624257,0.00023287,2]
[332506623,1721278304895,-1310.52579303,0.00023287,2]
[332506624,1721278304908,-539.85420697,0.00023287,2]
[332506625,1721278304919,-500.0,0.00023287,2]
[332506626,1721278304929,-337.56248669,0.00023287,2]
[332506627,1721278304939,-542.87,0.00023287,2]
[332506628,1721278304948,-500.0,0.00023287,2]
[332506629,1721278304958,-619.93255756,0.00023287,2]
[332506630,1721278304970,-271.65744244,0.00023287,2]
[332506631,1721278304979,-497.67518052,0.00023287,2]
[332506632,1721278304999,-505.35575217,0.00022191,2]
[332506633,1721278305009,-92.57481948,0.00023287,2]
[332506634,1721278305019,-500.0,0.00023287,2]
[332506635,1721278305029,-952.72,0.00023287,2]
[332506636,1721278305039,-1004.9,0.00023287,2]
[332506637,1721278305054,-500.0,0.00023287,2]
[332506638,1721278305063,-1400.09,0.00023287,2]
[332506639,1721278305073,-500.0,0.00023287,2]
[332506640,1721278305083,-151.0,0.00023287,7]
[332506641,1721278305094,-2203.35,0.00023287,2]
[332506642,1721278305104,-611.5,0.00023287,2]
[332506643,1721278305116,-500.0,0.00023287,2]
[332506644,1721278305128,-500.0,0.00023287,2]
[332506645,1721278305138,-1023.96,0.00023287,2]
[332506646,1721278305148,-500.0,0.00023287,2]
[332506647,1721278305159,-843.49,0.00023287,2]
[332506648,1721278305169,-1076.5,0.00023287,2]
[332506649,1721278305179,-1418.1,0.00023287,2]
[332506650,1721278305190,-603.76,0.00023287,2]
[332506651,1721278305199,-796.62,0.00023287,2]
[332506652,1721278305209,-500.0,0.00023287,2]
[332506653,1721278305219,-500.0,0.00023287,2]
[332506654,1721278305228,-500.0,0.00023287,2]
[332506655,1721278305238,-957.75,0.00023287,2]
[332506656,1721278305249,-693.25,0.00023287,2]
[332506657,1721278305261,-823.01,0.00023287,2]
[332506658,1721278305271,-764.33,0.00023287,2]
[332506659,1721278305281,-500.0,0.00023287,2]
[332506660,1721278305291,-500.0,0.00023287,2]
[332506661,1721278305303,-882.46,0.00023287,2]
[332506662,1721278305314,-500.0,0.00023287,2]
[332506663,1721278305324,-500.0,0.00023287,2]
[332506664,1721278305335,-500.0,0.00023287,2]
[332506665,1721278305346,-578.89,0.00023287,2]
[332506666,1721278305358,-500.0,0.00023287,2]
[332506667,1721278305370,-1452.14,0.00023287,2]
[332506668,1721278305381,-500.0,0.00023287,2]
[332506669,1721278305391,-500.0,0.00023287,2]
[332506670,1721278305404,-671.89,0.00023287,2]
[332506671,1721278305414,-500.0,0.00023287,2]
[332506672,1721278305425,-1112.7,0.00023287,2]
[332506673,1721278305436,-1197.13,0.00023287,2]
[332506674,1721278305446,-1138.95,0.00023287,2]
[332506675,1721278305456,-568.53,0.00023287,2]
[332506676,1721278305466,-535.62,0.00023287,2]
[332506677,1721278305475,-520.36131028,0.00023287,2]
[332506678,1721278305485,-500.0,0.00023287,2]
[332506679,1721278305495,-802.16,0.00023287,2]
[332506680,1721278305507,-820.21,0.00023287,2]
[332506681,1721278305518,-500.0,0.00023287,2]
[332506682,1721278305529,-557.41,0.00023287,2]
[332506683,1721278305539,-443.66157372,0.00023287,2]
[332506684,1721278305571,-614.12842628,0.00023287,2]
[332506685,1721278305581,-473.27922312,0.00023287,2]
[332506686,1721278305593,-26.72077688,0.00023287,2]
[332506687,1721278305603,-500.0,0.00023287,2]
[332506688,1721278305612,-151.0,0.00023287,7]
[332506689,1721278305624,-344.32009312,0.00023287,2]
[332506690,1721278305636,-157.37990688,0.00023287,2]
[332506691,1721278305646,-516.5,0.00023287,2]
[332506692,1721278305655,-1231.33,0.00023287,2]
[332506693,1721278305665,-151.0,0.00023287,7]
[332506694,1721278305675,-618.81,0.00023287,2]
[332506695,1721278305684,-661.58,0.00023287,2]
[332506696,1721278305695,-601.66,0.00023287,2]
[332506697,1721278305704,-500.0,0.00023287,2]
[332506698,1721278305714,-723.63,0.00023287,2]
[332506699,1721278305723,-572.25,0.00023287,2]
[332506700,1721278305733,-472.836208,0.00023287,7]
[332506701,1721278305743,-500.0,0.00023287,2]
[332506702,1721278305755,-1448.43170846,0.00023287,2]
[332506703,1721278305768,-360.45829154,0.00023287,2]
[332506704,1721278305777,-472.836208,0.00023287,7]
[332506705,1721278305788,-834.24,0.00023287,2]
[332506706,1721278305799,-595.92,0.00023287,2]
[332506707,1721278305809,-660.9,0.00023287,2]
[332506708,1721278305819,-597.08,0.00023287,2]
[332506709,1721278305830,-1460.06,0.00023287,2]
[332506710,1721278305840,-459.89627,0.00023287,7]
[332506711,1721278305851,-1459.23,0.00023287,2]
[332506712,1721278305862,-500.0,0.00023287,2]
[332506713,1721278305873,-2334.35448046,0.00023287,2]
[332506714,1721278305893,-237.64551954,0.00023287,2]
[332506715,1721278305904,-459.89627,0.00023287,7]
[332506716,1721278305914,-500.0,0.00023287,2]
[332506717,1721278305924,-832.85,0.00023287,2]
[332506718,1721278305934,-755.9,0.00023287,2]
[332506719,1721278305945,-268.26554763,0.00023287,2]
[332506720,1721278305957,-173.12522328,0.00023287,2]
[332506721,1721278305967,-1423.26,0.00023287,2]
[332506722,1721278305978,-500.0,0.00023287,2]
[332506723,1721278305990,-151.0,0.00023287,7]
[332506724,1721278306000,-1742.5,0.00023287,2]
[332506725,1721278306010,-500.0,0.00023287,2]
[332506726,1721278306020,-500.0,0.00023287,2]
[332506727,1721278306029,-500.0,0.00023287,2]
[332506728,1721278306041,-500.0,0.00023287,2]
[332506729,1721278306054,-1422.17,0.00023287,2]
[332506730,1721278306066,-1493.13,0.00023287,2]
[332506731,1721278306078,-500.0,0.00023287,2]
[332506732,1721278306087,-500.0,0.00023287,2]
[332506733,1721278306098,-500.0,0.00023287,2]
[332506734,1721278306108,-563.05,0.00023287,2]
[332506735,1721278306118,-151.0,0.00023287,7]
[332506736,1721278306129,-5588.55,0.00023287,2]
[332506737,1721278306139,-500.0,0.00023287,2]
[332506738,1721278306151,-681.21,0.00023287,2]
[332506739,1721278306161,-500.0,0.00023287,2]
[332506740,1721278306171,-151.0,0.00023287,7]
[332506741,1721278306182,-258.012768,0.00023287,7]
[332506742,1721278306192,-500.0,0.00023287,2]
[332506743,1721278306201,-747.32,0.00023287,2]
[332506744,1721278306211,-562.13,0.00023287,2]
[332506745,1721278306221,-258.012768,0.00023287,7]
[332506746,1721278306234,-500.0,0.00023287,2]
[332506747,1721278306244,-1257.47,0.00023287,2]
[332506748,1721278306255,-500.0,0.00023287,2]
[332506749,1721278306267,-500.0,0.00023287,2]
[332506750,1721278306278,-500.0,0.00023287,2]
[332506751,1721278306289,-927.3,0.00023287,2]
[332506752,1721278306299,-655.14,0.00023287,2]
[332506753,1721278306309,-500.0,0.00023287,2]
[332506754,1721278306320,-1336.52920623,0.00023287,2]
[332506755,1721278306682,-284.56657028,0.00023287,2]
[332506756,1721278306695,-730.55933782,0.00023287,2]
[332506757,1721278307557,-1728.91551635,0.00015709,2]
[332506758,1721278332081,599.063268,0.00013999,2]
[332506759,1721278348461,777.5897617,0.00013999,2]
[332506760,1721278364809,155.0,0.00013999,2]
[332506761,1721278367621,946.5561817,0.00013999,2]
[332506762,1721278376398,413.80836051,0.00013999,2]
[332506763,1721278382403,306.02874822,0.00013999,2]
[332506764,1721278392478,3878.1239,0.00013972,2]
[332506765,1721278406399,413.80836051,0.00013999,2]
[332506766,1721278461935,550.0,0.00013,2]
[332506767,1721278843424,759.04945973,0.00013999,2]
[332506768,1721279071491,170.1,0.0002479,120]
[332506769,1721279199887,171.77595455,5e-05,2]
[332506770,1721279253651,8363.9594128,5e-05,2]
[332506771,1721279260562,1195.08005924,6.061e-05,2]
[332506772,1721279260692,155.14462349,5e-05,2]
[332506773,1721279319568,1195.08005924,6.061e-05,2]
[332506774,1721279338244,212.38486091,5e-05,2]
[332506775,1721279370561,1195.08005924,7.347e-05,2]
[332506776,1721279393343,208.95928661,0.00013999,2]
[332506781,1721279426690,12189.60374375,8.905e-05,2]
[332506785,1721279431967,-180.49475677,0.00014574,2]
[332506786,1721279431976,-827.36524323,0.00014841,2]
[332506787,1721279432011,-21.73556328,0.00014841,2]
[332506788,1721279432020,-7918.72558845,0.00014841,2]
[332506789,1721279432029,-5000.0,0.00014841,2]
[332506790,1721279432038,-5000.0,0.00014841,2]
[332506791,1721279432047,-2425.9614506,0.00014841,2]
[332506792,1721279432085,-866.31079321,0.00014841,2]
[332506793,1721279432097,-1661.1859856,0.00014841,2]
[332506794,1721279432110,-46.54177059,0.00014841,2]
[332506795,1721279432119,-2361.09422941,0.00014841,2]
[332506796,1721279432139,-300.300005,0.00014841,2]
[332506797,1721279432150,-2338.60576559,0.00014841,2]
[332506798,1721279432159,-759.04945973,0.00014849,2]
[332506800,1721279432168,-959.9484,0.0001489,2]
[332506802,1721279432177,-599.45308107,0.00014899,2]
[332506804,1721279432187,-600.0,0.00015,2]
[332506806,1721279432196,-299.99,0.00015,2]
[332506808,1721279432205,-499.99,0.00015,2]
[332506809,1721279432215,-170.08264759,0.00015,2]
[332506811,1721279432224,-1394.51308179,0.00015708,2]
[332506820,1721279437932,-376.75,0.00015708,2]
[332506821,1721279438262,-1483.03691821,0.00015708,2]
[332506822,1721279438272,-150.99,0.0001582,2]
[332506823,1721279438282,-285.33,0.0001582,2]
[332506824,1721279438291,-499.99,0.0001582,2]
[332506825,1721279438301,-413.80836051,0.00015999,2]
[332506826,1721279438310,-5000.0,0.00016,2]
[332506827,1721279438319,-9973.13061825,0.00016116,2]
[332506829,1721279439847,208.95928661,0.00013,2]
[332506830,1721279439866,-26.85938175,0.00016116,2]
[332506831,1721279439876,-1629.05212924,0.00016552,2]
[332506832,1721279439885,-658.04585548,0.00016552,2]
[332506833,1721279439895,-603.67236749,0.00016701,2]
[332506834,1721279439965,-650.0,0.00016701,2]
[332506835,1721279440036,-37068.32763251,0.00016701,2]
[332506836,1721279440046,-616.304,0.00016701,2]
[332506837,1721279440055,-450.105,0.00016701,2]
[332506838,1721279440064,-194.91,0.00016712,2]
[332506839,1721279440074,-735.28,0.00016936,2]
[332506840,1721279440083,-250.0,0.00017807,2]
[332506841,1721279440093,-371.29329548,0.00018,2]
[332506842,1721279440102,-162.0,0.00018211,2]
[332506843,1721279440112,-3973.24754201,0.00018446,2]
[332506844,1721279440121,-469.61,0.00018447,2]
[332506845,1721279440131,-706.45,0.00018555,2]
[332506846,1721279440141,-572.277,0.00018555,2]
[332506847,1721279440152,-170.1,0.00018592,2]
[332506848,1721279440161,-7374.61,0.00018623,2]
[332506849,1721279440171,-250.0,0.00018673,2]
[332506850,1721279440181,-221.18,0.00018719,2]
[332506851,1721279440191,-162.0,0.00018754,2]
[332506852,1721279440201,-400.0,0.00018881,2]
[332506853,1721279440210,-162.0,0.00018904,2]
[332506854,1721279440220,-23900.0,0.00018917,2]
[332506855,1721279440229,-250.0,0.00018922,2]
[332506856,1721279440240,-162.33,0.00018935,2]
[332506857,1721279440249,-184.18,0.00018958,2]
[332506858,1721279440259,-160.99535017,0.00019,2]
[332506859,1721279440269,-717.54836549,0.00019091,2]
[332506860,1721279440279,-717.54836549,0.00019091,2]
[332506861,1721279440289,-735.28,0.00019199,2]
[332506862,1721279440298,-1500.0,0.000195,2]
[332506863,1721279440308,-167.73,0.00019504,2]
[332506864,1721279440318,-572.277,0.00019529,2]
[332506865,1721279440327,-221.18,0.00019655,2]
[332506866,1721279440338,-150.0,0.0001967,2]
[332506867,1721279440349,-167.0,0.0001967,2]
[332506868,1721279440360,-17019.884,0.00019701,2]
[332506869,1721279440369,-160.04773201,0.00019942,2]
[332506871,1721279440379,-188.43960679,0.0002,2]
[332506873,1721279440389,-327.6481753,0.0002,2]
[332506875,1721279440399,-2000.0,0.0002,2]
[332506877,1721279440408,-3272.80559963,0.00020009,2]
[332506879,1721279440418,-2000.0,0.0002001,2]
[332506881,1721279440427,-300.0,0.00020013,2]
[332506883,1721279440438,-2000.0,0.0002002,2]
[332506884,1721279440447,-2791.472023,0.0002003,2]
[332506886,1721279440456,-162.0,0.00020054,2]
[332506888,1721279440466,-1153.0,0.000201,2]
[332506890,1721279440475,-2021.38780005,0.00020201,2]
[332506892,1721279440485,-258.14366149,0.00020331,2]
[332506894,1721279440495,-152.45555403,0.00020332,2]
[332506896,1721279440505,-221.18,0.00020591,2]
[332506898,1721279440514,-572.277,0.00020606,2]
[332506900,1721279440524,-167.0,0.00020752,2]
[332506902,1721279440533,-3238.57882365,0.00020971,2]
[332506904,1721279440543,-155.0,0.00021071,2]
[332506906,1721279440552,-300.0,0.00021071,2]
[332506908,1721279440561,-152.10825306,0.00021072,2]
[332506910,1721279440571,-1857.21968787,0.000211,2]
[332506912,1721279440580,-3238.57882365,0.00021183,2]
[332506913,1721279440589,-400.0,0.00021241,2]
[332506915,1721279440599,-300.0,0.00021383,2]
[332506917,1721279440609,-3238.57882365,0.00021394,2]
[332506919,1721279440618,-180.0,0.00021397,2]
[332506921,1721279440628,-735.28,0.00021463,2]
[332506923,1721279440637,-221.18,0.00021527,2]
[332506925,1721279440646,-3238.57882365,0.00021606,2]
[332506927,1721279440656,-447.8963,0.00021642,2]
[332506929,1721279440666,-308.589,0.00021642,2]
[332506931,1721279440676,-170.1,0.00021691,2]
[332506933,1721279440686,-1000.0,0.00021699,2]
[332506935,1721279440696,-5000.0,0.000217,2]
[332506937,1721279440705,-153.0,0.00021761,2]
[332506939,1721279440719,-153.0,0.00021765,2]
[332506941,1721279440728,-153.0,0.00021769,2]
[332506943,1721279440737,-306.60080449,0.00021772,2]
[332506945,1721279440747,-1254.63523304,0.00021772,2]
[332506947,1721279440758,-153.0,0.00021773,2]
[332506949,1721279440767,-104.66644547,0.00021798,2]
[332506952,1721279440781,-467.61055453,0.00021798,2]
[332506954,1721279440792,-7500.0,0.00021817,2]
[332506956,1721279440802,-182.02421399,0.00021817,2]
[332506958,1721279440812,-3238.57882365,0.00021817,2]
[332506960,1721279440822,-312.27726531,0.00021817,2]
[332506962,1721279440832,-167.0,0.00021834,2]
[332506964,1721279440842,-13573.0198505,0.00021907,3]
[332506966,1721279440852,-178.21,0.00021907,2]
[332506968,1721279440863,-946.5561817,0.00021909,2]
[332506970,1721279440872,-1267.51325796,0.0002191,2]
[332506972,1721279440883,-324.37241136,0.0002191,2]
[332506974,1721279440893,-531.12735371,0.00021911,2]
[332506976,1721279440902,-366.47664087,0.00021916,2]
[332506978,1721279440912,-366.47664087,0.00021916,2]
[332506980,1721279440922,-538.0,0.00021917,2]
[332506982,1721279440931,-500.0,0.00021917,2]
[332506984,1721279440941,-500.0,0.00021917,2]
[332506986,1721279440951,-500.0,0.00021917,2]
[332506988,1721279440960,-529.3089968,0.00021917,2]
[332506990,1721279440970,-500.0,0.00021917,2]
[332506992,1721279440983,-500.0,0.00021917,2]
[332506994,1721279440992,-500.0,0.00021917,2]
[332506996,1721279441002,-500.0,0.00021917,2]
[332506998,1721279441011,-500.0,0.00021917,2]
[332507000,1721279441020,-500.0,0.00021917,2]
[332507002,1721279441030,-500.0,0.00021917,2]
[332507004,1721279441040,-500.0,0.00021917,2]
[332507005,1721279441050,-622.08,0.00021917,2]
[332507007,1721279441059,-596.95452672,0.00021917,2]
[332507009,1721279441069,-500.0,0.00021917,2]
[332507011,1721279441078,-500.0,0.00021917,2]
[332507013,1721279441089,-500.0,0.00021917,2]
[332507015,1721279441099,-500.0,0.00021917,2]
[332507017,1721279441110,-500.0,0.00021917,2]
[332507020,1721279441119,-500.0,0.00021917,2]
[332507021,1721279441129,-500.0,0.00021917,2]
[332507023,1721279441138,-500.0,0.00021917,2]
[332507025,1721279441148,-500.0,0.00021917,2]
[332507027,1721279441157,-500.0,0.00021917,2]
[332507029,1721279441167,-500.0,0.00021917,2]
[332507032,1721279441177,-500.0,0.00021917,2]
[332507034,1721279441189,-500.0,0.00021917,2]
[332507036,1721279441201,-500.0,0.00021917,2]
[332507038,1721279441211,-500.0,0.00021917,2]
[332507040,1721279441220,-500.0,0.00021917,2]
[332507042,1721279441229,-500.0,0.00021917,2]
[332507044,1721279441239,-500.0,0.00021917,2]
[332507046,1721279441248,-500.0,0.00021917,2]
[332507048,1721279441257,-500.0,0.00021917,2]
[332507050,1721279441268,-500.0,0.00021917,2]
[332507052,1721279441278,-500.0,0.00021917,2]